Cogmind - Beta 16.1 @@@ ROGUE MODE // 2026.02.21 @ 06:53:45 Player: Storm Mk9 Result: Destroyed by RX-4TX(R) with Subdweller Machine Gun Performance ------------- Evolutions (0) 0 Regions Visited (2) 400 Robots Destroyed (27) 135 Value Destroyed (576) 576 Prototype IDs (0) 0 Alien Tech Used (0) 0 Bonus (0) 0 TOTAL SCORE: 1111 Bonus ------- None Cogmind --------- Core Integrity 0/250 Matter 250/300 Energy 125/125 System Corruption 0% Temperature Cool (0) Movement Treading (160) Location -10/Subcaves Parts ------- > --- POWER (1) -------- Light Ion Engine > --- PROPULSION (2) --- Light Treads > --- UTILITY (2) ------ Small Storage Unit Core Shielding > --- WEAPON (2) ------- Heavy Assault Rifle Heavy Assault Rifle > --- INVENTORY (8) ---- Light Ion Engine Wheel EM Pulse Gun Light Assault Rifle Light Assault Rifle Heavy Assault Rifle Peak State ------------ > --- POWER ------------ Light Ion Engine > --- PROPULSION ------- Light Treads Light Treads > --- UTILITY ---------- Small Storage Unit Core Shielding > --- WEAPON ----------- Heavy Assault Rifle Heavy Assault Rifle > --- INVENTORY -------- Light Ion Engine Light Treads Wheel EM Pulse Gun Light Assault Rifle Light Assault Rifle Heavy Assault Rifle Heavy Assault Rifle [Rating: 10] Favorites ----------- Power Light Ion Engine Engine Light Ion Engine Propulsion Light Treads Treads Light Treads Utility Small Storage Unit Device Seismic Detector Storage Small Storage Unit Protection Core Shielding Weapon Heavy Assault Rifle Energy Gun Small Laser Ballistic Gun Heavy Assault Rifle Build | -11 -10 -10 ------- Run | Yrd Mat Sub Slots Evolved . | . . . Power . | . . . Propulsion . | . . . Utility . | . . . Weapon . | . . . Parts Attached 17 | 7 8 2 Power 2 | 1 1 . Engine 2 | 1 1 . Core . | . . . Reactor . | . . . Propulsion 5 | 2 2 1 Treads 5 | 2 2 1 Leg . | . . . Wheel . | . . . Hover . | . . . Flight . | . . . Utility 3 | 2 1 . Device 1 | 1 . . Storage 1 | 1 . . Processor . | . . . Hackware . | . . . Protection 1 | . 1 . Artifact . | . . . Weapon 7 | 2 4 1 Energy Gun 2 | 1 1 . Energy Cannon . | . . . Ballistic Gun 5 | 1 3 1 Ballistic Cannon . | . . . Launcher . | . . . Special Weapon . | . . . Impact Weapon . | . . . Slashing Weapon . | . . . Piercing Weapon . | . . . Special Melee Weapon . | . . . Unidentified Prototypes . | . . . Parts Lost 9 | . 6 3 Power 1 | . 1 . Propulsion 4 | . 2 2 Utility 1 | . 1 . Weapon 3 | . 2 1 Highest Loss Streak 5 | . 5 2 To Critical Strikes . | . . . Average Backups 5 | 2 4 7 Power . | . . 1 Propulsion 1 | . 1 1 Utility . | . . . Weapon 3 | 1 1 4 Tool/Special . | . . . Unused Backups 4 | . . 4 Power 1 | . . 1 Propulsion 1 | . . 1 Utility . | . . . Weapon 2 | . . 2 Tool/Special . | . . . Average Slot Usage (%) 95 | . 90 99 Engine 14 | . 14 14 Treads 26 | . 25 27 Device 2 | . 5 . Storage 14 | . 14 14 Protection 8 | . 2 14 Energy Gun 4 | . 9 . Ballistic Gun 23 | . 18 27 Peak Build Rating 10 | 7 9 10 Average Rating 8 | 4 6 9 On Entrance 5 | . 7 9 Avg Prop Armor Cover (%) . | . . . Naked Turns . | . . . Heaviest Build 15 | 13 15 15 Greatest Support 40 | 40 40 40 Greatest Overweight (x) . | . . . Average Overweight (x) . | . . . Largest Inventory Capacity 8 | 8 8 8 Average Capacity 7 | 7 8 8 Most Carried 8 | 6 8 8 Average Carried 5 | 2 4 7 Final Capacity 8 | 8 8 8 Final Carried 7 | 3 7 6 Class Distribution -------------------- 100% | Mutant Dominant Class ---------------- Mutant | -10/Materials Mutant | -10/Subcaves Resources | -11 -10 -10 ----------- Run | Yrd Mat Sub Matter Collected 543 | 268 120 155 Remotely . | . . . Salvage Created 844 | 112 614 118 Parts 48 | 3 36 9 Haulers Intercepted 2 | . 2 . Recyclers Shooed . | . . . Parts Field Recycled . | . . . Retrieved Matter . | . . . Parts Self-Destructed 14 | . . 14 Prevented . | . . . Parts Restored . | . . . Kills | -11 -10 -10 ------- Run | Yrd Mat Sub Combat Hostiles Destroyed 16 | . 12 4 Guns 15 | . 11 4 AOE 1 | . 1 . Classes Destroyed 10 | 2 6 2 Worker 2 | . 2 . Builder 1 | . 1 . Tunneler 2 | 2 . . Hauler 2 | . 2 . Recycler 2 | 1 1 . Mechanic 1 | . 1 . Turret 1 | . . 1 Swarmer 5 | . 2 3 Grunt 10 | . 10 . Subdweller 1 | . . 1 Best Kill Streak 7 | 2 7 2 Combat Bots Only 3 | . 3 2 Max Kills in Single Turn 5 | 1 5 1 Gunslinging 1 | . 1 . Exploded 1 | . 1 . Melee . | . . . Uniques/NPCs Destroyed . | . . . Combat | -11 -10 -10 -------- Run | Yrd Mat Sub Hostile Shots Fired 225 | . 88 137 Missed 79 | . 27 52 Hits 146 | . 61 85 Projectile 146 | . 61 85 Critical Strikes 1 | . . 1 Damage Taken 1511 | . 792 719 Core 258 | . 129 129 Absorbed by Shields . | . . . Redirected to Shielding 25 | . . 25 Core Remaining (%) 100 | 100 . . Volleys Fired 84 | 8 48 28 Largest 2 | 2 2 2 Hottest 60 | 60 60 46 Shots Fired 166 | 16 94 56 Gun 166 | 16 94 56 Cannon . | . . . Launcher . | . . . Special . | . . . Kinetic 119 | 8 55 56 Thermal 40 | 8 32 . Explosive . | . . . Electromagnetic 7 | . 7 . Robot Hit Streak 13 | 3 10 13 Robot Miss Streak 4 | 1 4 3 Penetration Max . | . . . Secondary Targets 2 | . 2 . Max Gunslinging Chain 1 | . 1 . Shots Hit Robots 110 | 10 65 35 Core Hits 47 | 5 30 12 Critical Kills . | . . . Critical Parts Destroyed . | . . . Critical Strikes 1 | . 1 . Corrupt 1 | . 1 . Melee Attacks . | . . . Impact . | . . . Slashing . | . . . Piercing . | . . . Sneak Attacks . | . . . Combat Hostiles . | . . . Follow-up Attacks . | . . . Damage Inflicted 1717 | 105 1088 524 Guns 1351 | 105 722 524 Cannons . | . . . Explosions 366 | . 366 . Melee . | . . . Ramming . | . . . Kinetic 931 | 49 358 524 Thermal 693 | 56 637 . Explosive . | . . . Electromagnetic 93 | . 93 . Impact . | . . . Slashing . | . . . Piercing . | . . . Highest Corruption . | . . . Average Corruption . | . . . Corruption Purged . | . . . Corruption Blocked . | . . . Overload Shots . | . . . Overflow Damage 119 | . 119 . Projectiles . | . . . Explosions 119 | . 119 . Melee . | . . . Knockbacks . | . . . Impact . | . . . Kinetic . | . . . Secondary . | . . . Self-Inflicted Damage 113 | . 113 . Shots 2 | . 2 . Rammed . | . . . Targets Rammed . | . . . Kicked . | . . . Crushed . | . . . Highest Temperature 274 | 40 97 274 Average Temperature 38 | 22 33 160 Received Heat Transfer 989 | . 288 701 Siege Activations . | . . . Martial Activations . | . . . Shielding Activations . | . . . Robots Disrupted . | . . . Combat Hostiles . | . . . Robots Corrupted . | . . . Combat Hostiles . | . . . Parts Fried . | . . . Impact Corruptions . | . . . Robots Melted . | . . . Combat Hostiles . | . . . Parts Melted . | . . . Heat Transferred 1100 | 125 975 . Parts Sabotaged . | . . . Parts Stolen . | . . . Parts Stripped . | . . . Power Chain Reactions 1 | . 1 . Alert | -11 -10 -10 ------- Run | Yrd Mat Sub Maximum Alert Level 1 | . 1 . Low Security (%) 67 | 100 60 . Level 1 32 | . 39 . Level 2 . | . . . Level 3 . | . . . Level 4 . | . . . Level 5 . | . . . High Security . | . . . Max Security . | . . . Peak Influence 273 | 10 273 . Initial . | . . . Average 96 | 1 117 . Influence Increases 802 | 15 482 305 Destroy 0b10 Robot/C 320 | . 240 80 Destroy 0b10 Robot/NC 50 | 15 35 . Destroy Leader 64 | . 64 . Successful Hack 4 | . 4 . Disable Machine 60 | . 60 . Destroy Structure 34 | . 34 . Lose Combat Pursuer 270 | . 45 225 Influence Decreases 705 | 15 258 432 Entered New Map 108 | . . 108 Time Decay 507 | 15 198 294 Lost Part 90 | . 60 30 Squads Dispatched 3 | . 3 . Investigation 2 | . 2 . Extermination . | . . . Reinforcement 1 | . 1 . Assault . | . . . Garrison . | . . . Intercept . | . . . Searches Triggered . | . . . Construction Impeded . | . . . Haulers Reinforced . | . . . Active Scanning Responses . | . . . Cargo Convoy Interrupts . | . . . Stealth | -11 -10 -10 --------- Run | Yrd Mat Sub Distress Signals . | . . . Communications Jammed . | . . . Distress Signals . | . . . Times Spotted 36 | . 20 16 Peak Tracking Total 7 | . 7 2 Tactical Retreats 9 | . 3 6 Traps | -11 -10 -10 ------- Run | Yrd Mat Sub Traps Triggered 2 | . 2 . Indirectly . | . . . Trap Hack Attempts . | . . . Triggered . | . . . Disarmed . | . . . Reprogrammed . | . . . Reused . | . . . Traps Extracted . | . . . Installed . | . . . Triggered . | . . . Machines | -11 -10 -10 ---------- Run | Yrd Mat Sub Machines Disabled 6 | . 4 2 Max in Single Turn 3 | . 3 1 Machines Repaired . | . . . Machines Dismantled . | . . . Machines Sabotaged . | . . . Overloaded Fab Kills . | . . . Hacking | -11 -10 -10 --------- Run | Yrd Mat Sub Machines Accessed 2 | . 1 1 Terminals 1 | . 1 . Fabricators . | . . . Repair Stations . | . . . Recycling Units . | . . . Scanalyzers . | . . . Garrison Access . | . . . Total Hacks 6 | . 2 4 Successful 5 | . 1 4 Failed 1 | . 1 . Catastrophic . | . . . Database Lockouts . | . . . Manual 2 | . 2 . Terminals 2 | . 2 . Fabricators . | . . . Repair Stations . | . . . Recycling Units . | . . . Scanalyzers . | . . . Garrison Access . | . . . Terminal Hacks 4 | . . 4 Record 4 | . . 4 Fabricator Hacks . | . . . Repair Station Hacks . | . . . Recycling Unit Hacks . | . . . Scanalyzer . | . . . Garrison Access Hacks . | . . . Unauthorized Hacks 1 | . 1 . Terminals 1 | . 1 . Skim 1 | . 1 . Fabricators . | . . . Repair Stations . | . . . Recycling Units . | . . . Scanalyzers . | . . . Garrison Access . | . . . Data Cores Recovered . | . . . Used . | . . . Hacking Detections 1 | . 1 . Full Trace Events . | . . . Feedback Events . | . . . Feedback Blocked . | . . . Robot Schematics Acquired . | . . . Robots Built . | . . . Authchips . | . . . Time . | . . . Total Robot Build Rating . | . . . Part Schematics Acquired . | . . . Parts Built . | . . . Authchips . | . . . Time . | . . . Total Part Build Rating . | . . . Part Studies Acquired . | . . . Parts Repaired . | . . . Time . | . . . Parts Recycled . | . . . Recycled Matter . | . . . Retrieved Matter . | . . . Retrieved Components . | . . . Parts Scanalyzed . | . . . Part Schematics Acquired . | . . . Parts Damaged . | . . . Bothacking | -11 -10 -10 ------------ Run | Yrd Mat Sub Used RIF Installer . | . . . Robots Hacked . | . . . Non-combat . | . . . Combat . | . . . Robot Hacks Applied . | . . . Relay Couplers Released . | . . . Fabnet Peak Effective % . | . . . Robots Rewired . | . . . Allies Hacked . | . . . Hacks Repelled . | . . . Allies | -11 -10 -10 -------- Run | Yrd Mat Sub Total Allies . | . . . Largest Group . | . . . Highest-Rated Group . | . . . Highest-Rated Ally . | . . . Total Orders . | . . . Ally Attacks . | . . . Total Damage . | . . . Kills . | . . . Allies Corrupted . | . . . Allies Melted . | . . . Intel | -11 -10 -10 ------- Run | Yrd Mat Sub Active Infowar (turns) 229 | 14 215 . Seismic 229 | 14 215 . Robot Analysis Total . | . . . Derelict Logs Recovered . | . . . Drone Launches . | . . . Drone Recoveries . | . . . Exploration | -11 -10 -10 ------------- Run | Yrd Mat Sub Turns Passed 1326 | 123 556 647 Spaces Moved 564 | 58 158 348 Core 7 | 7 . . Treads 557 | 51 158 348 Legs . | . . . Wheels . | . . . Hover . | . . . Flight . | . . . Fastest Speed 50 | 50 160 160 Average Speed 158 | 146 160 160 Slowest Speed 160 | 160 160 160 Overloaded Moves . | . . . Propulsion Burnouts . | . . . Robots Hopped . | . . . Potential Cave-ins . | . . . Cave-ins Triggered . | . . . Exploration Rate (%) 17 | 4 32 17 Regions Visited 2 Branch Regions 1 Pre-discovered Areas 1 | . . 1 Known Exits Taken . | . . . Unknown Exits Taken 2 | 1 1 . Scrap Searched . | . . . Spaces Dug . | . . . Terrain Destroyed 56 | . 56 . Melee . | . . . Projectile . | . . . AOE 56 | . 56 . Terrain Rammed . | . . . Walls Destroyed . | . . . Machines Disabled . | . . . Actions | -11 -10 -10 --------- Run | Yrd Mat Sub Total 839 | 81 374 384 Wait 156 | . 151 5 Move 562 | 57 157 348 Hop . | . . . Pick Up 20 | 9 10 1 Fast Attach 1 | 1 . . Attach 14 | 6 6 2 Detach . | . . . Swap 2 | . 2 . Drop . | . . . Fire 84 | 8 48 28 Melee . | . . . Ram . | . . . Kick . | . . . Crush . | . . . Escape Stasis . | . . . Rewire . | . . . Trap . | . . . Miscellaneous . | . . . Route ------- -11/Scrapyard -10/Materials (discovered 2 exits: [*Mat] / *Sub) -10/Subcaves (discovered 1 exit: *Rec) History --------- Turn | Location | Event 16 | -11/Scrapyard | Discovered new exit (range 15) 124 | -11/Scrapyard | Entered Materials 302 | -10/Materials | Build established: Mutant 493 | -10/Materials | Lost 5 parts (1p2n2w) 515 | -10/Materials | Core integrity fell below 50% 540 | -10/Materials | Discovered new exit (range 16) 655 | -10/Materials | Discovered new exit (range 5) 680 | -10/Materials | Entered Subcaves 681 | -10/Subcaves | Approached by a straggling Scientist 685 | -10/Subcaves | Learned location of Zion (-7) 685 | -10/Subcaves | Met a Zionite searching for "candidates" 722 | -10/Subcaves | A swath of the cavern ceiling suddenly collapsed 843 | -10/Subcaves | Visited Clippyterm 848 | -10/Subcaves | Identified exit to Recycling 848 | -10/Subcaves | Learned Factory garrison access intel 950 | -10/Subcaves | A swath of the cavern ceiling suddenly collapsed 1259 | -10/Subcaves | Core integrity fell below 20% 1327 | -10/Subcaves | Destroyed by RX-4TX(R) with Subdweller Machine Gun Last Messages --------------- 00877_ Flight Unit fries itself beyond repair. 00890_ S-10 Pest destroyed. 00898_ Acquired 6 matter. 00907_ Flight Unit fries itself beyond repair. A swath of the cavern ceiling suddenly collapses. 01214_ Machine disabled. 01215_ Subatomizers dissect the Wheel. 01225_ Lgt. Treads destroyed. 01229_ Subatomizers dissect the Wheel. 01229_ Hvy. Assault Rifle destroyed. 01234_ Destroyed Autobeam. 01239_ Acquired 10 matter. 01242_ Acquired 20 matter. 01243_ Subatomizers dissect the Wheel. 01267_ Autobeam Turret destroyed. 01274_ Acquired 21 matter. 01282_ Acquired 18 matter. 01317_ Lgt. Treads destroyed. Map ----- +----------------------------------------------------+ | ????????????????????????????????????????????????? | | ????????????????????????????????????????????????? | | ????????????????????????????????????????????????? | | ????????????????????????????????????????????????? | | ????????????????????????????????????????????????? | | ????????????????????????????????????????????????? | | ????????????????????????????????????????????????? | | ????????????????????????????????????????????????? | | ????????????????????????????????????????????????? | | ????????????????????????????????????????????????? | | ????????????????????????????????????????????????? | | ????????????????????????????????????????????????? | | ????????????????????????????????????????????????? | | ????????????????????????????????????????????????? | | ????????????????????????????????????????????????? | | ????????????###??????#??????????????????????????? | | ????????#####>#####??# ?????????????????????????? | | ????????#"""" " "#??# ???????????#?????????????? | | ????????#" " "#??# #??###????"#?????????????? | | ????????#" "#?## ^##""#### ??????????????? | | ????????# #?# """"" ????????????????? | | ????????# ### ^ # #?????????????????? | | ????????#" "## ^ # #?????????????? | | ????????#### ##### R "#?????????????? | | ????????# ###### ##R# # # "#?????????????? | | ????????# ## ######@##????????????????????? | | ??????#### # # #????????????????????? | | ?????## ##= ##????????????????????? | | ###### ! ###### #?#???????????????????? | | ""## #####????###? ???????????????????? | | " ## #### ###??????? ???????????????????? | | X ### ###?????? ???????????????????? | | " ## #"#?????? ???????????????????? | | " ### ""###????# ##?????????????????? | | ###?## ### #"## ???? #?????????????????? | | ?????## ###### ## ????? ##????????????????? | | ??????# ## #### # ????? #????????????????? | | ?????## #?# "#?????? ###??????????????? | | ????## ###?# #??????# ##?????????????? | | ???## ##??########??##### #?????????????? | | ???# ##??# ######### #### #?????????????? | | ???# #### ## #"" # #?????????????? | | ???# #"### #?????????????? | | ???## # ###?????????????????? | | ????## ## ##??????????????????? | | ?????# # ##???????????????????? | | ???### ## #????????????????????? | | #### ### ##????????????????????? | | ## #### ##????????????????????? | | ##### ## #????????????????????? | +----------------------------------------------------+ Best States ------------- Heat Dissipation 25 Energy Generation 10 Energy Capacity 250 Matter Stores 300 Matter Capacity 300 Sight Range 16 Terrain Scan Density 10 Core Shielding 20 Evasion (%) 40 Recoil Reduction 2 Item Schematics ----------------- None Robot Schematics ------------------ None Fabricated ------------ Nothing Repaired ---------- Nothing Studied --------- None Alien Tech Used ----------------- None Achievements -------------- None Challenges ------------ None Game ------ Seed CompanionMeleeReplica Manual? 0 Play Time 00:13:05 Cumulative 92.6 hours Start 2026.02.21 @ 06:35:22 End 2026.02.21 @ 06:53:45 Sessions 1 Manual Loads 0 Difficulty Rogue Special Mode None Game No. 102 Rogue 83 Adventurer 0 Explorer 19 Win Type - Total 0 Types 0/0/0/0/0/0/0/0/0/0 Lore% 57 Gallery% 46 Achievement% 41 Wizard Run 0 Options --------- Layout 1 ASCII 0 Keyboard 0 Movement Mouse Keybinds 0 Fullscreen 2 Font 16/SmallcapsGlow Map View 50x40 Zoom Use 0% Tactical HUD 1 Map Filters NONE Filters NONE Steam SD RUN: 66952288-c388-43da-b780-1165c31d37b3